fUST/lending_fUST_20240123
["ID","MTS","AMOUNT","RATE_DAILY","PERIOD"]
[312531251,1705944640600,-500.0,0.00026999,4]
[312531252,1705944640609,-500.0,0.00026999,4]
[312531253,1705944640618,-500.0,0.00026999,4]
[312531254,1705944640627,-500.0,0.00026999,4]
[312531255,1705944640636,-500.0,0.00026999,4]
[312531256,1705944640645,-500.0,0.00026999,4]
[312531257,1705944640654,-500.0,0.00026999,4]
[312531258,1705944640664,-500.0,0.00026999,4]
[312531259,1705944640673,-499.99999999,0.00026999,4]
[312531260,1705944640682,-500.0,0.00026999,4]
[312531261,1705944640691,-250.0,0.00026999,4]
[312531262,1705944640700,-290.32272867,0.00027,2]
[312531263,1705944640709,-343.09681091,0.00027,2]
[312531264,1705944640719,-154.98450155,0.00027,2]
[312531265,1705944640729,-10300.80544997,0.00027,2]
[312531266,1705944640738,-763.99864371,0.00027,2]
[312531267,1705944640747,-4000.55725773,0.00027,2]
[312531268,1705944640756,-284227.95491571,0.00027,7]
[312531269,1705944640766,-3504.81302219,0.00027,2]
[312531270,1705944640775,-300.0,0.00027,2]
[312531271,1705944640784,-475.141705,0.00027006,2]
[312531272,1705944640793,-12423.32320564,0.00027298,2]
[312531273,1705944640803,-4011.1198485,0.00027298,2]
[312531274,1705944640813,-155.0,0.00027397,2]
[312531275,1705944640822,-500.0,0.00027397,2]
[312531276,1705944640831,-500.0,0.00027534,2]
[312531277,1705944640840,-151.0,0.00027581,2]
[312531278,1705944640849,-500.0,0.00027671,2]
[312531279,1705944640858,-475.141705,0.00027789,2]
[312531280,1705944640867,-38616.90105308,0.000278,2]
[312531281,1705944640876,-500.0,0.00027808,2]
[312531282,1705944640885,-209.34116569,0.00027898,2]
[312531283,1705944640895,-309.52025057,0.00027898,2]
[312531284,1705944640904,-595.13721922,0.00027898,2]
[312531285,1705944640913,-235442.09331043,0.000279,2]
[312531286,1705944640926,-10202.84952288,0.000279,2]
[312531315,1705944641601,-2222.44887672,0.0002699,3]
[312531319,1705944641620,-1717.22473708,0.0002699,3]
[312531721,1705944646368,-386.12132242,0.0002699,3]
[312531722,1705944646379,-837.5,0.0002699,3]
[312531747,1705944655600,1220.04712136,7.999e-05,5]
[312531755,1705944798915,260.71552206,9.991e-05,7]
[312531771,1705945605932,-175.22193864,7.347e-05,2]
[312531772,1705945605954,-323.59110907,7.347e-05,2]
[312531773,1705945605977,-165.15521868,7.348e-05,2]
[312531774,1705945605999,-156.02710907,7.348e-05,2]
[312531775,1705945606024,-1880.00462454,7.348e-05,2]
[312531841,1705945834560,-561.64006482,7.326e-05,2]
[312531842,1705945834569,-3918.04720875,7.327e-05,2]
[312531843,1705945834591,-55.81185947,7.327e-05,2]
[312531844,1705945834600,-246.21885002,7.327e-05,2]
[312531845,1705945834609,-156.02710907,7.328e-05,2]
[312531846,1705945834619,-2348.26956654,7.328e-05,2]
[312531847,1705945834630,-1137.49880284,7.328e-05,2]
[312531848,1705945834640,-294.88989743,7.328e-05,2]
[312531849,1705945834649,-309.59757263,7.328e-05,2]
[312531850,1705945834660,-616.7500659,7.329e-05,2]
[312531851,1705945834668,-595.13721922,7.329e-05,2]
[312531852,1705945834677,-36965.59360405,7.329e-05,2]
[312531853,1705945834686,-1579.39395429,7.329e-05,2]
[312531854,1705945834695,-452.74208012,7.33e-05,2]
[312531855,1705945834704,-19867.27856324,7.33e-05,2]
[312531856,1705945834713,-6064.70750661,7.33e-05,2]
[312531857,1705945834748,-3745.718092,7.33e-05,2]
[312531863,1705945839131,-262.3827165,7.326e-05,2]
[312531864,1705945839144,-264.938001,7.326e-05,2]
[312531865,1705945839158,-419.11,7.326e-05,2]
[312531866,1705945839171,-4446.22071116,7.326e-05,2]
[312531867,1705945839196,-16293.49454884,7.326e-05,2]
[312531868,1705945839205,-903.63325516,7.326e-05,2]
[312531869,1705945839215,-155.32484539,7.327e-05,2]
[312531870,1705945839224,-5409.77435124,7.33e-05,2]
[312531871,1705945839235,-81207.38465248,7.331e-05,2]
[312531872,1705945839244,-329.53567279,7.331e-05,2]
[312531873,1705945839254,-13719.8221343,7.331e-05,2]
[312531874,1705945839262,-183.8240989,7.345e-05,2]
[312531875,1705945839272,-322.76015809,7.347e-05,2]
[312531876,1705945839281,-208.95051578,7.347e-05,2]
[312531877,1705945839290,-638.52478245,7.351e-05,2]
[312531878,1705945839300,-918.4287939,7.351e-05,2]
[312531879,1705945839310,-151.06734831,7.354e-05,2]
[312531880,1705945839319,-309.32455563,7.357e-05,2]
[312531881,1705945839329,-429.09478055,7.357e-05,2]
[312531882,1705945839338,-269.82783697,7.359e-05,2]
[312531883,1705945839348,-1811.69628534,7.359e-05,2]
[312531884,1705945839357,-1565.02245956,7.363e-05,2]
[312531885,1705945839367,-876.39189184,7.366e-05,2]
[312531886,1705945839376,-644.40876473,7.371e-05,2]
[312531887,1705945839385,-2073.9279871,7.394e-05,2]
[312531888,1705945839394,-470.67463112,7.394e-05,2]
[312531889,1705945839404,-2103.40493137,7.394e-05,2]
[312531890,1705945839414,-24900.0,7.397e-05,2]
[312531891,1705945839423,-1601.85871119,7.843e-05,2]
[312531892,1705945839433,-185.41016331,7.864e-05,2]
[312531893,1705945839442,-4019.20430214,7.955e-05,2]
[312531894,1705945839453,-1639.74215233,8e-05,2]
[312531895,1705945839462,-711.772838,8.993e-05,2]
[312531896,1705945839472,-215.93124285,9e-05,2]
[312531897,1705945839482,-262.2850779,9.992e-05,2]
[312531898,1705945839491,-309.75217661,9.996e-05,2]
[312531899,1705945839500,-10300.80544997,0.0001,2]
[312531900,1705945839510,-343.09681091,0.0001,2]
[312531901,1705945839520,-155.23205591,0.0001,2]
[312531902,1705945839529,-154.98450155,0.0001,2]
[312531903,1705945839539,-163.12898653,0.0001,2]
[312531904,1705945839548,-154.98450155,0.0001,2]
[312531905,1705945839557,-213.43652609,0.0001,2]
[312531906,1705945839567,-7960.18375069,0.0001,2]
[312531907,1705945839577,-309.56660676,0.00010598,2]
[312531908,1705945839587,-290.41888215,0.000129,2]
[312531909,1705945839597,-290.41888215,0.000129,2]
[312531910,1705945839607,-3000.0,0.00013699,2]
[312531911,1705945839618,-151.0673483,0.00014102,2]
[312531912,1705945839627,-247.29821682,0.00015,2]
[312531913,1705945839637,-154.98450155,0.00015,2]
[312531914,1705945839647,-687.96014716,0.00015,2]
[312531915,1705945839657,-1177.07113045,0.00015,2]
[312531916,1705945839667,-154.98450155,0.00015,2]
[312531917,1705945839675,-1266.7890629,0.00015,2]
[312531918,1705945839685,-309.52025057,0.00015998,2]
[312531919,1705945839695,-209.34116569,0.00015999,2]
[312531920,1705945839705,-2081.72910671,0.00016,2]
[312531921,1705945839717,-2884.03574497,0.00016,2]
[312531922,1705945839730,-6190.4135248,0.00016,2]
[312531923,1705945839742,-273071.77653923,0.00016,2]
[312531924,1705945839753,-272.55691777,0.000165,2]
[312531925,1705945839763,-874.37604694,0.00017235,2]
[312531926,1705945839772,-290.41888215,0.00017568,2]
[312531927,1705945839783,-10537.96841435,0.00017898,2]
[312531928,1705945839792,-1582.38308236,0.00019,2]
[312531929,1705945839802,-165.847948,0.00019178,2]
[312531930,1705945839811,-1114.53942019,0.000195,2]
[312531931,1705945839820,-154.98450155,0.0002,2]
[312531932,1705945839830,-2084.29033128,0.0002,2]
[312531933,1705945839839,-300.0,0.0002,2]
[312531934,1705945839850,-154.98450155,0.0002,2]
[312531935,1705945839860,-154.98450155,0.0002,2]
[312531936,1705945839870,-154.98450155,0.0002,2]
[312531937,1705945839880,-678.6288756,0.0002,2]
[312531938,1705945839891,-1197.97622761,0.0002,2]
[312531939,1705945839900,-323.13003236,0.0002,2]
[312531940,1705945839910,-667.24083957,0.0002,2]
[312531941,1705945839920,-850.30063575,0.0002,2]
[312531942,1705945839929,-200.0,0.0002,2]
[312531943,1705945839939,-151.0673483,0.0002095,2]
[312531944,1705945839949,-3504.81302219,0.00021,2]
[312531945,1705945839959,-327.51224259,0.00021,2]
[312531946,1705945839969,-166.666666,0.00021918,2]
[312531947,1705945839977,-425.98515357,0.00022,2]
[312531948,1705945839986,-154.98450155,0.00022,2]
[312531949,1705945839995,-293.4468762,0.00022,4]
[312531950,1705945840004,-166.666666,0.00022431,2]
[312531951,1705945840014,-290.41888215,0.00022734,2]
[312531952,1705945840024,-166.666666,0.00022944,2]
[312531953,1705945840033,-1571.50470749,0.00023,2]
[312531954,1705945840042,-166.666666,0.00023456,2]
[312531955,1705945840051,-166.666666,0.00023969,2]
[312531956,1705945840061,-4014.03339386,0.00024,2]
[312531957,1705945840070,-166.666666,0.00024482,2]
[312531958,1705945840079,-158.380569,0.00024658,2]
[312531959,1705945840088,-448.374757,0.00024658,2]
[312531960,1705945840097,-380.0,0.00024658,2]
[312531961,1705945840107,-824.33300328,0.000247,2]
[312531962,1705945840116,-4723.24260277,0.00025,2]
[312531963,1705945840126,-763.99864371,0.00025,2]
[312531964,1705945840136,-7381.29040931,0.00025,2]
[312531965,1705945840145,-250.44821004,0.00025,2]
[312531966,1705945840155,-679.71377977,0.00025,2]
[312531967,1705945840164,-154.98450155,0.00025,2]
[312531968,1705945840174,-154.98450155,0.00025,2]
[312531969,1705945840183,-448.374757,0.0002544,2]
[312531970,1705945840192,-200.0,0.00025479,2]
[312531971,1705945840201,-9807.92282386,0.000258,2]
[312531972,1705945840211,-1287.17016169,0.00025915,5]
[312531973,1705945840337,-148612.35004414,0.00026,2]
[312531974,1705945840346,-448.374757,0.00026223,2]
[312531975,1705945840356,-648.03043698,0.000264,2]
[312531976,1705945840366,-286.67398334,0.00026583,2]
[312531977,1705945840375,-16434.44305414,0.00026714,2]
[312531978,1705945840385,-555.15795489,0.00026716,2]
[312531979,1705945840394,-20867.97666951,0.00026716,2]
[312531980,1705945840403,-277.29980319,0.00026716,2]
[312531981,1705945840413,-261.05411193,0.00026716,2]
[312531982,1705945840423,-1293.3633064,0.00026716,2]
[312531983,1705945840434,-158.380569,0.00026849,2]
[312531984,1705945840443,-267.98689299,0.00026988,2]
[312531985,1705945840454,-670.58761481,0.00026988,2]
[312531986,1705945840464,-301.83960351,0.00026988,2]
[312531987,1705945840475,-201.69688547,0.00026988,2]
[312531988,1705945840485,-365.05011169,0.00026988,2]
[312531989,1705945840495,-939.67840321,0.00026988,2]
[312531991,1705945840505,-500.0,0.00026988,2]
[312531992,1705945840515,-500.0,0.00026988,2]
[312531993,1705945840525,-500.0,0.00026988,2]
[312531994,1705945840534,-500.0,0.00026988,2]
[312531995,1705945840544,-500.0,0.00026988,2]
[312531996,1705945840554,-500.0,0.00026988,2]
[312531997,1705945840563,-418.22761255,0.00026988,2]
[312531998,1705945840572,-500.0,0.00026988,2]
[312531999,1705945840584,-500.0,0.00026988,2]
[312532000,1705945840594,-500.0,0.00026988,2]
[312532001,1705945840606,-223.36598882,0.00026988,2]
[312532003,1705945840616,-500.0,0.00026988,2]
[312532004,1705945840625,-500.0,0.00026988,2]
[312532005,1705945840635,-500.0,0.00026988,2]
[312532006,1705945840645,-500.0,0.00026988,2]
[312532007,1705945840656,-323.48128088,0.00026988,2]
[312532008,1705945840667,-500.0,0.00026988,2]
[312532009,1705945840676,-377.13757273,0.00026988,2]
[312532010,1705945840686,-500.0,0.00026988,2]
[312532011,1705945840696,-508.80295826,0.00026988,2]
[312532012,1705945840706,-500.0,0.00026988,2]
[312532013,1705945840716,-500.0,0.00026988,2]
[312532014,1705945840726,-500.0,0.00026988,2]
[312532015,1705945840735,-500.0,0.00026988,2]
[312532016,1705945840746,-500.0,0.00026988,2]
[312532017,1705945840756,-500.0,0.00026988,2]
[312532018,1705945840766,-500.0,0.00026988,2]
[312532019,1705945840776,-500.0,0.00026988,2]
[312532020,1705945840786,-500.0,0.00026988,2]
[312532021,1705945840795,-500.0,0.00026988,2]
[312532022,1705945840806,-500.0,0.00026988,2]
[312532023,1705945840815,-500.0,0.00026988,2]
[312532024,1705945840825,-500.0,0.00026988,2]
[312532025,1705945840835,-348.09634438,0.00026988,2]
[312532026,1705945840845,-500.0,0.00026988,2]
[312532027,1705945840855,-305.58381171,0.00026988,2]
[312532029,1705945840865,-500.0,0.00026988,2]
[312532031,1705945840876,-500.0,0.00026988,2]
[312532032,1705945840885,-500.0,0.00026988,2]
[312532034,1705945840894,-500.0,0.00026988,2]
[312532035,1705945840904,-500.0,0.00026988,2]
[312532037,1705945840914,-155.5299203,0.00026989,2]
[312532038,1705945840923,-588.23188464,0.00026989,2]
[312532039,1705945840933,-7087.35255153,0.00026989,2]
[312532040,1705945840942,-6956.71002954,0.00026989,2]
[312532041,1705945840952,-7448.5280568,0.00026989,2]
[312532042,1705945840961,-1531.90862822,0.00026989,2]
[312532043,1705945840970,-433.80233624,0.00026989,2]
[312532044,1705945840980,-225.13435346,0.00026989,2]
[312532045,1705945840990,-1990.08489948,0.00026998,2]
[312532046,1705945840999,-165.78244305,0.00026998,2]
[312532047,1705945841010,-290.32272867,0.00027,2]
[312532048,1705945841019,-448.374757,0.00027006,2]
[312532049,1705945841029,-208.4755949,0.0002726,2]
[312532050,1705945841038,-221.42222138,0.00027268,2]
[312532051,1705945841048,-155.0,0.00027397,2]
[312532052,1705945841058,-500.0,0.00027397,2]
[312532053,1705945841069,-11696.99,0.00027397,3]
[312532054,1705945841079,-500.0,0.00027534,2]
[312532055,1705945841088,-500.0,0.00027671,2]
[312532056,1705945841099,-153.0,0.00027671,2]
[312532057,1705945841109,-199.1966855,0.00027671,2]
[312532058,1705945841118,-153.0,0.00027671,2]
[312532059,1705945841129,-199.1966855,0.00027671,2]
[312532060,1705945841138,-199.1966855,0.00027671,2]
[312532061,1705945841149,-153.0,0.00027671,2]
[312532062,1705945841159,-198.8061655,0.00027671,2]
[312532063,1705945841169,-153.0,0.00027671,2]
[312532064,1705945841180,-621.40152185,0.0002772,2]
[312532065,1705945841190,-448.374757,0.00027789,2]
[312532066,1705945841200,-151.0673483,0.00027798,2]
[312532067,1705945841210,-38616.90105308,0.000278,2]
[312532068,1705945841219,-500.0,0.00027808,2]
[312532069,1705945841230,-151.50000152,0.00027844,2]
[312532070,1705945841240,-500.0,0.00027899,4]
[312532071,1705945841249,-500.0,0.00027899,4]
[312532072,1705945841259,-500.0,0.00027899,4]
[312532073,1705945841269,-500.0,0.00027899,4]
[312532074,1705945841279,-500.0,0.00027899,4]
[312532075,1705945841291,-500.0,0.00027899,4]
[312532076,1705945841301,-303.55530802,0.00027899,4]
[312532077,1705945841311,-648.12472318,0.00027899,4]
[312532078,1705945841321,-500.0,0.00027899,4]
[312532080,1705945841331,-157.42869219,0.00027899,4]
[312532082,1705945841340,-500.0,0.00027899,4]
[312532083,1705945841349,-500.0,0.00027899,4]
[312532084,1705945841359,-500.0,0.00027899,4]
[312532085,1705945841368,-500.0,0.00027899,4]
[312532086,1705945841377,-500.0,0.00027899,4]
[312532087,1705945841387,-500.0,0.00027899,4]
[312532088,1705945841396,-500.0,0.00027899,4]
[312532090,1705945841405,-500.0,0.00027899,4]
[312532091,1705945841414,-500.0,0.00027899,4]
[312532092,1705945841424,-500.0,0.00027899,4]
[312532093,1705945841433,-500.0,0.00027899,4]
[312532095,1705945841443,-500.0,0.00027899,4]
[312532097,1705945841452,-500.0,0.00027899,4]
[312532098,1705945841461,-500.0,0.00027899,4]
[312532100,1705945841471,-500.0,0.00027899,4]
[312532102,1705945841481,-500.0,0.00027899,4]
[312532104,1705945841490,-500.0,0.00027899,4]
[312532106,1705945841500,-500.0,0.00027899,4]
[312532107,1705945841509,-500.0,0.00027899,4]
[312532109,1705945841519,-500.0,0.00027899,4]
[312532110,1705945841529,-500.0,0.00027899,4]
[312532111,1705945841539,-500.0,0.00027899,4]
[312532112,1705945841548,-500.0,0.00027899,4]
[312532113,1705945841558,-500.0,0.00027899,4]
[312532114,1705945841567,-500.0,0.00027899,4]
[312532115,1705945841578,-500.0,0.00027899,4]
[312532116,1705945841589,-500.0,0.00027899,4]
[312532117,1705945841598,-190.55565859,0.00027899,4]
[312532118,1705945841609,-484.56017229,0.00027899,4]
[312532119,1705945841618,-500.0,0.00027899,4]
[312532120,1705945841628,-500.0,0.00027899,4]
[312532121,1705945841638,-353.88634259,0.00027899,4]
[312532122,1705945841648,-500.0,0.00027899,4]
[312532123,1705945841659,-500.0,0.00027899,4]
[312532124,1705945841669,-500.0,0.00027899,4]
[312532125,1705945841679,-460.37043906,0.00027899,4]
[312532126,1705945841689,-500.0,0.00027899,4]
[312532127,1705945841699,-265.41648212,0.00027899,4]
[312532128,1705945841710,-500.0,0.00027899,4]
[312532129,1705945841720,-500.0,0.00027899,4]
[312532130,1705945841731,-500.0,0.00027899,4]
[312532131,1705945841741,-500.0,0.00027899,4]
[312532132,1705945841753,-188969.89329756,0.000279,2]
[312532133,1705945841860,-10202.84952288,0.000279,2]
[312532134,1705945842052,-556.85296294,0.00026988,2]
[312532135,1705945842062,-709.55992232,0.000279,2]
[312532136,1705945842077,-2657.65001381,0.000279,2]
[312532137,1705945842090,-4244.8757,0.000279,2]
[312532161,1705945843637,-2483.99814563,0.000279,2]
[312532179,1705945846531,-163.1041432,0.00027899,2]
[312532180,1705945846542,-503.62421556,0.00027899,2]
[312532181,1705945846551,-391.21688249,0.000279,2]
[312532182,1705945846563,-8147.99999998,0.000279,2]
[312532293,1705947032652,-595.13721922,7.172e-05,2]
[312532294,1705947032661,-680.10116762,7.172e-05,2]
[312532295,1705947032669,-74542.74243398,7.172e-05,2]
[312532353,1705947038745,-2137.88596785,7.171e-05,2]
[312532360,1705947038808,-1347.88240153,7.171e-05,2]
[312532362,1705947038818,-922.22224758,7.172e-05,2]
[312532364,1705947038831,-5742.41997092,7.172e-05,2]
[312532366,1705947038841,-1293.76681809,7.173e-05,2]
[312532368,1705947038851,-13336.81321099,7.173e-05,2]
[312532371,1705947038862,-23628.78039306,7.173e-05,2]
[312532373,1705947038872,-19867.27856324,7.174e-05,2]
[312532375,1705947038881,-3973.85906822,7.174e-05,2]
[312532377,1705947038890,-20874.58230083,7.175e-05,2]
[312532379,1705947038899,-1603.2097273,7.182e-05,2]
[312532380,1705947038908,-170.92363548,7.192e-05,2]
[312532382,1705947038918,-151.0673483,7.215e-05,2]
[312532384,1705947038927,-309.78316417,7.215e-05,2]
[312532386,1705947038937,-470.67463112,7.222e-05,2]
[312532388,1705947038948,-2103.40493137,7.222e-05,2]
[312532390,1705947038959,-2073.9279871,7.222e-05,2]
[312532392,1705947038970,-1242.55121556,7.222e-05,2]
[312532394,1705947038978,-185.41016331,7.229e-05,2]
[312532396,1705947038988,-24900.0,7.397e-05,2]
[312532398,1705947038997,-876.39189184,9.992e-05,2]
[312532400,1705947039006,-4790.79275157,0.0001,2]
[312532402,1705947039016,-154.98450155,0.0001,2]
[312532404,1705947039026,-7960.18375069,0.0001,2]
[312532406,1705947039035,-213.43652609,0.0001,2]
[312532408,1705947039045,-217.81416163,0.000129,2]
[312532410,1705947039054,-217.81416161,0.000129,2]
[312532412,1705947039064,-2047.5072293,0.00013699,2]
[312532414,1705947039073,-526.75292248,0.00014513,2]
[312532416,1705947039083,-687.96014716,0.00015,2]
[312532418,1705947039093,-1266.7890629,0.00015,2]
[312532420,1705947039102,-154.98450155,0.00015,2]
[312532422,1705947039111,-561.64006482,0.00015512,2]
[312532424,1705947039121,-1287.17016169,0.00015519,2]
[312532427,1705947039132,-286.67398334,0.00015916,2]
[312532428,1705947039141,-225.13435346,0.00015997,2]
[312532430,1705947039151,-277.29980319,0.00015997,2]
[312532432,1705947039160,-17510.85253852,0.00015998,2]
[312532436,1705947039169,-155.5299203,0.00015999,2]
[312532437,1705947039178,-1531.90862822,0.00015999,2]
[312532440,1705947039187,-267.98689299,0.00015999,2]
[312532443,1705947039199,-301.83960351,0.00015999,2]
[312532445,1705947039208,-588.23188464,0.00015999,2]
[312532447,1705947039216,-1990.08489948,0.00015999,2]
[312532449,1705947039226,-4580.55992462,0.0001631,2]
[312532451,1705947039236,-328.29572382,0.00016499,2]
[312532453,1705947039246,-272.55691777,0.000165,2]
[312532455,1705947039255,-874.37604694,0.00017235,2]
[312532457,1705947039265,-217.81416161,0.0001741,2]
[312532459,1705947039274,-10537.96841435,0.00017898,2]
[312532461,1705947039284,-1582.38308236,0.00019,2]
[312532463,1705947039293,-165.847956,0.00019178,2]
[312532465,1705947039303,-165.847948,0.00019178,2]
[312532468,1705947039314,-1114.53942019,0.000195,2]
[312532470,1705947039324,-154.98450155,0.0002,2]
[312532472,1705947039333,-323.13003236,0.0002,2]
[312532474,1705947039342,-154.98450155,0.0002,2]
[312532476,1705947039355,-200.0,0.0002,2]
[312532478,1705947039364,-678.6288756,0.0002,2]
[312532480,1705947039373,-667.24083957,0.0002,2]
[312532482,1705947039383,-209.89222833,0.0002,2]
[312532484,1705947039393,-1197.97622761,0.0002,2]
[312532486,1705947039403,-154.98450155,0.0002,2]
[312532488,1705947039413,-2134.35553655,0.0002,5]
[312532490,1705947039422,-850.30063575,0.0002,2]
[312532492,1705947039431,-232.97414454,0.00021,2]
[312532494,1705947039440,-8289.76804343,0.00021,2]
[312532496,1705947039451,-42362.49087901,0.00021,2]
[312532497,1705947039460,-166.666666,0.00021918,2]
[312532499,1705947039469,-293.4468762,0.00022,4]
[312532501,1705947039478,-425.98515357,0.00022,2]
[312532503,1705947039487,-9060.45794745,0.00022221,2]
[312532505,1705947039496,-166.666666,0.00022431,2]
[312532507,1705947039506,-217.81416161,0.00022565,2]
[312532509,1705947039515,-166.666666,0.00022944,2]
[312532511,1705947039525,-1571.50470749,0.00023,2]
[312532512,1705947039535,-165.78244305,0.00023389,2]
[312532513,1705947039545,-166.666666,0.00023456,2]
[312532514,1705947039554,-166.666666,0.00023969,2]
[312532515,1705947039564,-4014.03339386,0.00024,2]
[312532516,1705947039573,-166.666666,0.00024482,2]
[312532517,1705947039583,-439.600515,0.00024658,2]
[312532518,1705947039592,-180.316173,0.00024658,2]
[312532519,1705947039602,-380.0,0.00024658,2]
[312532520,1705947039611,-1582.21305813,0.000247,2]
[312532521,1705947039620,-679.71377977,0.00025,2]
[312532522,1705947039630,-4723.24260277,0.00025,2]
[312532523,1705947039639,-154.98450155,0.00025,2]
[312532524,1705947039648,-154.98450155,0.00025,2]
[312532525,1705947039657,-7381.29040931,0.00025,2]
[312532532,1705947039797,-1500.40236428,0.00025,2]
[312532534,1705947039807,-14739.84371486,0.00025,10]
[312532537,1705947039816,-25330.29672088,0.00025,2]
[312532539,1705947039825,-1002.17175487,0.00025,2]
[312532541,1705947039835,-9286.90575802,0.00025297,2]
[312532543,1705947039844,-439.600515,0.0002544,2]
[312532545,1705947039854,-200.0,0.00025479,2]
[312532547,1705947039864,-16434.44305314,0.00025796,2]
[312532549,1705947039874,-433.80233624,0.00025797,2]
[312532550,1705947039884,-555.15795489,0.00025797,2]
[312532552,1705947039894,-154.98450155,0.00025797,2]
[312532554,1705947039903,-261.05411193,0.00025797,2]
[312532555,1705947039912,-201.69688547,0.00025798,2]
[312532557,1705947039922,-7448.5280568,0.00025798,2]
[312532559,1705947039932,-939.67840321,0.00025798,2]
[312532560,1705947039942,-7087.35255153,0.00025798,2]
[312532562,1705947039954,-9807.92282386,0.000258,2]
[312532563,1705947039964,-32104.45544456,0.000259,2]
[312532564,1705947039975,-155.25305817,0.00025988,2]
[312532565,1705947039984,-193.33123141,0.00025988,2]
[312532566,1705947039994,-148612.35004414,0.00026,2]
[312532568,1705947040004,-241.24702868,0.00026,2]
[312532570,1705947040013,-439.600515,0.00026223,2]
[312532572,1705947040025,-36983.7356372,0.00026765,2]
[312532574,1705947040039,-10202.84952288,0.00026765,2]
[312532577,1705947040052,-2376.35776166,0.00026765,2]
[312532647,1705947040708,-2034.57165769,7.17e-05,2]
[312532650,1705947040719,-437.05707826,0.00026765,2]
[312532652,1705947040729,-180.316173,0.00026849,2]
[312532653,1705947040739,-726.90542032,0.00026987,2]
[312532819,1705947042795,-889.24805769,0.00026987,2]
[312532820,1705947042804,-245.92930057,0.00026987,2]
[312532821,1705947042814,-290.32272867,0.00027,2]
[312532822,1705947042823,-439.600515,0.00027006,2]
[312532823,1705947042833,-163.02214,0.00027064,2]
[312532824,1705947042842,-188.29380735,0.00027287,2]
[312532825,1705947042851,-155.0,0.00027397,2]
[312532826,1705947042861,-500.0,0.00027397,2]
[312532827,1705947042871,-500.0,0.00027534,2]
[312532828,1705947042880,-500.0,0.00027671,2]
[312532829,1705947042889,-217.81416161,0.00027721,3]
[312532830,1705947042897,-283.00356066,0.00027789,2]
[312532831,1705947042910,-156.59695434,0.00027789,2]
[312532832,1705947042920,-118.95522461,0.00027798,2]
[312532833,1705947042931,-32.11212369,0.00027798,2]
[312532834,1705947042940,-226.31570761,0.000278,2]
[312533024,1705947045869,-595.13721922,0.00026764,2]
[312533026,1705947045878,-36506.21714452,0.000278,2]
[312533028,1705947045898,-1419.51954625,0.000278,2]
[312533118,1705947513617,-2844.20023866,0.000295,30]
[312533119,1705947513642,-1000.0,0.0003,30]
[312533120,1705947513666,-1000.0,0.00031,31]
[312533121,1705947513691,-1000.0,0.00032,32]
[312533122,1705947513725,-1000.0,0.00033,33]
[312533123,1705947513752,-1000.0,0.00034,34]
[312533124,1705947513778,-1000.0,0.00035,35]
[312533125,1705947513803,-522.210408,0.00035616,120]
[312533126,1705947513827,-1000.0,0.00036,36]
[312533127,1705947513852,-1000.0,0.00037,37]
[312533128,1705947513874,-1000.0,0.00037,37]
[312533129,1705947513899,-1000.0,0.00038,38]
[312533130,1705947513926,-245.30368558,0.00039,30]
[312533131,1705947513950,-1000.0,0.00039,39]
[312533132,1705947513973,-1000.0,0.00039,39]
[312533133,1705947513999,-793.23143319,0.0004,30]
[312533134,1705947514022,-150.0,0.0004,30]
[312533135,1705947514045,-160.23316055,0.0004,120]
[312533136,1705947514067,-1000.0,0.0004,40]
[312533137,1705947514093,-600.0,0.0004,30]
[312533138,1705947514116,-162.52459058,0.00040027,30]
[312533139,1705947514139,-447.60588291,0.00040154,30]
[312533140,1705947514162,-447.60588291,0.00040193,30]
[312533141,1705947514185,-150.0,0.000402,30]
[312533142,1705947514208,-162.52459058,0.00040271,30]
[312533143,1705947514231,-150.98638473,0.00040281,30]
[312533144,1705947514253,-1000.0,0.000403,30]
[312533145,1705947514276,-154.87812389,0.00040347,30]
[312533146,1705947514299,-447.60588291,0.00040356,30]
[312533147,1705947514322,-447.60588291,0.00040382,30]